Cogmind - Beta 10.2 @@@ ROGUE MODE // 2021.12.11 @ 11:52:37 Player: CrossedViper Result: Destroyed 0B10! Performance ------------- Evolutions (9) 4500 Regions Visited (21) 4200 Robots Destroyed (374) 1870 Value Destroyed (23002) 23002 Prototype IDs (52) 1040 Alien Tech Used (3) 600 Bonus (32584) 32584 TOTAL SCORE: 67796 Bonus ------- High Alert Combat Kills 6824 Follower Combat Kills 2108 Network Hubs Disabled 200 Met Zhirov 300 Built Enhanced Grunts 300 A7 Reached Mainframe 300 Met R17 at Cetus 500 Read Decrypted Archives 300 Used Core Reset Matrix 3000 Met Sigix 2000 Escaped with Sigix 5000 Destroyed MAIN.C Guards 500 Met MAIN.C 5000 Destroyed MAIN.C Shell 5000 Win 3000 Friendly Fire -1748 Cogmind --------- Core Integrity 757/1600 Matter 300/300 Energy 98/100 System Corruption 7% Temperature Cool (0) Movement Core (50) Location Tau Ceti IV Orbit Parts ------- > --- POWER (3) -------- (None) > --- PROPULSION (6) --- (None) > --- UTILITY (12) ----- Experimental Optical Array > --- WEAPON (4) ------- (None) > --- INVENTORY (4) ---- EMDS Sigix Containment Pod Peak State ------------ > --- POWER ------------ Zero-point Reactor Vortex Chain Reactor > --- PROPULSION ------- Experimental Biometal Heavy Treads Enhanced Armored Heavy Treads Enhanced Armored Heavy Treads > --- UTILITY ---------- Experimental Cooling System Experimental Cooling System High-capacity Storage Unit High-capacity Storage Unit Experimental Targeting Computer Experimental Core Analyzer Experimental Armor Integrity Analyzer Advanced Particle Accelerator Advanced Weapon Cycler Experimental Thermal Shield Experimental Force Field AEGIS Remote Shield > --- WEAPON ----------- Null Cannon Null Cannon Sigix Broadsword > --- INVENTORY -------- Zero-point Reactor Centrium Wheel Experimental Matter Compressor Advanced Overload Amplifier Centrium Medium Armor Plating Core Reset Matrix EMDS Cooled Nova Cannon Cooled Nova Cannon Graviton Cannon Graviton Cannon Graviton Cannon Proton Missile Launcher Gamma Bomb Array Hellfire Missile Launcher Sigix Containment Pod [Rating: 253] Favorites ----------- Power Quantum Reactor Engine Improved Ion Engine Power Core Micro Fission Core Reactor Quantum Reactor Propulsion Light Treads Treads Light Treads Leg Aluminum Leg Wheel Centrium Wheel Utility High-capacity Storage Unit Device Advanced Weapon Cycler Storage High-capacity Storage Unit Processor Advanced Targeting Computer Hackware Hacking Suite Protection Centrium Medium Armor Plating Weapon Flak Gun Energy Gun Heavy Quantum Rifle Energy Cannon Cooled Nova Cannon Ballistic Gun Flak Gun Ballistic Cannon Graviton Cannon Launcher Gamma Bomb Array Slashing Weapon Sigix Broadsword Piercing Weapon Enhanced Force Lance Build | -11 -10 -10 -9 -9 -8 -7 -6 -6 -6 -6 -6 -5 -4 -4 -4 -3 -3 -2 -2 -1 -1 ------- Run | Scr Mat Min Mat Min Mat Fac Fac Ext Cet Arc Hub Fac Fac Was Fac Res Tes Res Qua Acc Com Slots Evolved 18 | . . . 2 . 2 2 2 . . . . 2 2 . . 2 . 2 . 2 . Power 2 | . . . . . . . . . . . . . 1 . . . . 1 . . . Propulsion 4 | . . . . . 1 1 . . . . . . . . . 2 . . . . . Utility 10 | . . . 2 . . . 2 . . . . 2 1 . . . . 1 . 2 . Weapon 2 | . . . . . 1 1 . . . . . . . . . . . . . . . Parts Attached 396 | 7 2 2 20 1 6 22 8 16 15 . 6 14 16 3 46 8 42 31 32 32 67 Power 30 | 1 . . 5 . 1 2 . 1 2 . . . 1 . 2 . 2 4 4 1 4 Engine 10 | 1 . . 5 . 1 2 . 1 . . . . . . . . . . . . . Core 4 | . . . . . . . . . . . . . . . 1 . 1 1 1 . . Reactor 16 | . . . . . . . . . 2 . . . 1 . 1 . 1 3 3 1 4 Propulsion 67 | 3 . . 6 . 1 8 . 7 6 . . 1 5 1 6 4 . 2 4 3 10 Treads 49 | 2 . . 4 . 1 8 . 7 6 . . 1 1 . 2 4 . 1 4 3 5 Leg 2 | . . . 2 . . . . . . . . . . . . . . . . . . Wheel 16 | 1 . . . . . . . . . . . . 4 1 4 . . 1 . . 5 Hover . | . . . . . . . . . . . . . . . . . . . . . . Flight . | . . . . . . . . . . . . . . . . . . . . . . Utility 149 | 1 2 . 1 1 1 7 5 1 1 . 2 7 8 1 22 1 18 16 15 12 27 Device 78 | . . . 1 1 . 1 1 . . . . 3 2 . 8 1 11 10 11 11 17 Storage 10 | 1 2 . . . . 2 . . . . . . . . . . 2 . . . 3 Processor 13 | . . . . . . 1 1 . . . . . 2 . 2 . . 1 1 . 5 Hackware 2 | . . . . . . . 1 . . . . . . . . . 1 . . . . Protection 46 | . . . . . 1 3 2 1 1 . 2 4 4 1 12 . 4 5 3 1 2 Artifact . | . . . . . . . . . . . . . . . . . . . . . . Weapon 150 | 2 . 2 8 . 3 5 3 7 6 . 4 6 2 1 16 3 22 9 9 16 26 Energy Gun 23 | 1 . 2 3 . . . . . . . . . . 1 5 . 8 2 . . 1 Energy Cannon 56 | . . . 1 . . . . . . . 2 2 2 . 4 . 7 5 4 13 16 Ballistic Gun 47 | 1 . . 4 . 3 4 3 7 6 . 2 4 . . 5 3 3 . 2 . . Ballistic Cannon 3 | . . . . . . . . . . . . . . . 1 . . . . . 2 Launcher 12 | . . . . . . 1 . . . . . . . . 1 . 2 1 1 2 4 Special Weapon . | . . . . . . . . . . . . . . . . . . . . . . Impact Weapon . | . . . . . . . . . . . . . . . . . . . . . . Slashing Weapon 8 | . . . . . . . . . . . . . . . . . 2 1 2 1 2 Piercing Weapon 1 | . . . . . . . . . . . . . . . . . . . . . 1 Special Melee Weapon . | . . . . . . . . . . . . . . . . . . . . . . Unidentified Prototypes 57 | . . . 3 1 . 1 . . 1 . 5 . 1 1 4 . 9 4 6 . 21 Parts Lost 63 | . 1 . 7 . . 1 . . . . 1 1 3 3 15 . 1 1 3 4 22 Power 7 | . 1 . 1 . . . . . . . . . . . 2 . . . 1 . 2 Propulsion 11 | . . . 2 . . 1 . . . . . 1 . 2 2 . . . . . 3 Utility 22 | . . . . . . . . . . . . . . 1 5 . . . 1 4 11 Weapon 23 | . . . 4 . . . . . . . 1 . 3 . 6 . 1 1 1 . 6 Highest Loss Streak 11 | . 1 . 3 . . 1 . . . . 1 1 2 2 2 . 1 1 1 1 11 Average Slot Usage (%) 88 | . 81 85 80 88 95 99 100 100 97 93 90 87 80 82 88 93 89 87 83 80 78 Engine 2 | . 9 . 9 11 9 7 6 6 1 . . . . . . . . . . . . Core 1 | . . . . . . . . . . . . . . . 1 4 4 2 2 4 1 Reactor 5 | . . . . . . . . . 4 6 6 5 7 10 8 4 4 9 9 8 9 Treads 15 | . 28 28 14 22 27 29 26 26 24 20 20 16 12 . 5 12 9 8 10 12 9 Wheel 3 | . . . . . . . . . . . . . . 16 9 9 9 8 3 . 5 Device 9 | . . . 8 11 9 2 . . . . . 5 5 3 8 9 10 13 15 26 24 Storage 11 | . 14 28 22 22 18 15 13 13 13 13 13 11 10 10 10 9 9 8 8 8 7 Processor 9 | . . . . . . 4 13 13 13 13 13 11 12 15 13 19 14 13 11 8 9 Hackware 1 | . . . . . . . 4 6 6 6 2 . . . . . 1 . . . . Protection 5 | . . . . . 5 6 8 6 6 6 9 10 10 8 9 4 5 6 5 4 1 Energy Gun 2 | . 14 28 13 . . . . . . . . . . 2 1 . 8 5 . . . Energy Cannon 2 | . . . 2 . . . . . . . . . 7 7 2 . 1 6 5 5 6 Ballistic Gun 13 | . 14 . 3 22 26 30 26 26 25 26 23 22 10 5 13 19 7 . 2 . . Naked Turns . | . . . . . . . . . . . . . . . . . . . . . . Heaviest Build 202 | 11 68 70 79 78 84 92 95 98 107 107 118 132 153 154 151 119 142 170 163 164 202 Greatest Support 245 | 40 40 40 40 40 60 80 80 100 120 120 120 130 160 46 80 32 135 135 230 230 245 Greatest Overweight (x) 25 | . 1 1 25 1 1 1 1 1 1 . . 1 3 5 13 3 4 5 5 1 12 Average Overweight (x) 1 | . . 1 2 1 1 1 1 . . . . . . 3 3 3 3 4 1 . 2 Largest Inventory Capacity 20 | 6 20 20 20 20 20 20 20 20 20 20 20 20 20 20 20 20 20 20 20 20 20 Average Capacity 19 | 4 6 20 20 20 20 20 20 20 20 20 20 20 20 20 20 20 20 20 20 20 19 Most Carried 20 | 4 7 7 10 9 17 20 19 20 20 20 20 20 20 20 20 20 20 20 20 20 20 Average Carried 16 | 1 4 4 5 5 11 19 17 19 19 20 19 17 15 19 16 19 19 18 19 17 17 Final Capacity 20 | 6 20 20 20 20 20 20 20 20 20 20 20 20 20 20 20 20 20 20 20 20 4 Final Carried 20 | 1 7 4 4 9 17 20 17 20 20 20 19 18 18 20 20 20 20 19 20 15 4 Class Distribution -------------------- 39% | Scavenger-Gunner 23% | Generator-Mutant 13% | Hauler-Mutant 8% | Scavenger-Mutant 6% | Scavenger-Tank 3% | Mutant Dominant Class ---------------- Mutant | -10/Materials Hauler-Mutant | -10/Mines Hauler-Mutant | -9/Materials Hauler-Mutant | -9/Mines Scavenger-Gunner | -8/Materials Scavenger-Gunner | -7/Factory Scavenger-Gunner | -6/Factory Scavenger-Gunner | -6/Extension Scavenger-Gunner | -6/Cetus Scavenger-Gunner | -6/Archives Scavenger-Gunner | -6/Hub_04(d) Scavenger-Gunner | -5/Factory Scavenger-Gunner | -4/Factory Scavenger-Mutant | -4/Waste Scavenger-Gunner | -4/Factory Scavenger-Gunner | -3/Research Hauler-Mutant | -3/Testing Generator-Mutant | -2/Research Generator-Mutant | -2/Quarantine Generator-Mutant | -1/Access Generator-Mutant | -1/Command Resources | -11 -10 -10 -9 -9 -8 -7 -6 -6 -6 -6 -6 -5 -4 -4 -4 -3 -3 -2 -2 -1 -1 ----------- Run | Scr Mat Min Mat Min Mat Fac Fac Ext Cet Arc Hub Fac Fac Was Fac Res Tes Res Qua Acc Com Matter Collected 10248 | 198 179 . 246 78 94 802 240 765 570 . 208 545 460 . 1453 95 661 420 496 1180 1558 Remotely 1390 | . . . . . . 180 117 . . . . 256 280 . 557 . . . . . . Salvage Created 22525 | . 546 . 576 123 166 946 294 1396 463 . 498 778 951 . 3169 95 1255 1978 1324 4819 3148 Parts 934 | . 26 . 35 11 10 53 12 75 19 . 22 34 38 . 151 1 61 65 77 167 77 Haulers Intercepted 15 | . 1 . 1 . . 3 . 3 . . 3 1 1 . 1 . . . . 1 . Recyclers Shooed 19 | . . . 1 . 1 1 . 2 . . . . 2 . 9 . . 1 . 2 . Parts Field Recycled . | . . . . . . . . . . . . . . . . . . . . . . Retrieved Matter . | . . . . . . . . . . . . . . . . . . . . . . Parts Self-Destructed . | . . . . . . . . . . . . . . . . . . . . . . Prevented . | . . . . . . . . . . . . . . . . . . . . . . Kills | -11 -10 -10 -9 -9 -8 -7 -6 -6 -6 -6 -6 -5 -4 -4 -4 -3 -3 -2 -2 -1 -1 ------- Run | Scr Mat Min Mat Min Mat Fac Fac Ext Cet Arc Hub Fac Fac Was Fac Res Tes Res Qua Acc Com Combat Hostiles Destroyed 282 | . 5 . 15 8 1 12 5 13 5 . 1 10 10 . 41 1 12 20 20 60 43 Melee 2 | . . . . . . . . . . . . 1 . . . . . . . . 1 Guns 118 | . 5 . 14 8 1 10 5 13 5 . 1 9 5 . 27 1 7 2 5 . . Cannons 87 | . . . 1 . . . . . . . . . 4 . 5 . . 10 8 35 24 AOE 25 | . . . . . . 2 . . . . . . . . 4 . 2 . 7 6 4 Classes Destroyed 21 | . 8 . 2 1 . 2 . 2 . . . 1 1 . . . . . 1 1 2 Worker 17 | . 1 . 2 . . 2 . . . . 4 1 . . 2 . . 1 . 2 2 Builder 18 | . 2 . . . . 1 . 2 . . 3 1 3 . 1 . 3 . . 2 . Tunneler 5 | . 1 . . . . . . 1 . . . . . . 1 . . 1 . 1 . Hauler 15 | . 1 . 1 . . 3 . 3 . . 3 1 1 . 1 . . . . 1 . Recycler 19 | . 2 . 1 . 1 3 . 1 . . . 1 2 . 3 . 1 1 . 3 . Mechanic 1 | . . . . . . . . . . . . . . . . . . . . 1 . Operator 6 | . 1 . . . 1 . . 1 . . . . . . . . 1 1 . . 1 Drone 1 | . . . . . . . . . . . . . . . . . . . . . 1 Watcher 11 | . 1 . . . . . . 1 1 . . . . . 2 . 1 . . 4 1 Swarmer 49 | . . . 6 7 . 4 . 1 . . . . 1 . 11 . . . 5 11 3 Saboteur 2 | . . . . . . . . . . . . 1 . . . . . . . . 1 Grunt 86 | . 5 . 5 . . 2 5 . 1 . . 4 6 . 9 . 5 9 3 23 9 Brawler 8 | . . . . . . . . . . . . . 1 . 1 . . . 1 3 2 Duelist 12 | . . . . . . 1 . . 1 . . 1 . . 1 . 1 3 1 2 1 Protector 3 | . . . . . . . . . . . . . . . . . . . 1 1 1 Sentry 36 | . . . 4 . 1 3 . 9 . . 1 . . . 6 1 2 3 1 4 1 Hunter 14 | . . . . . . . . 2 . . . . . . 6 . . . . 4 2 Programmer 41 | . . . . . . 2 . . . . . 2 2 . 7 . 4 5 5 12 2 Behemoth 2 | . . . . . . . . 1 . . . 1 . . . . . . . . . Cetus Guard 3 | . . . . . . . . . 3 . . . . . . . . . . . . M Guard 2 | . . . . . . . . . . . . . . . . . . . . . 2 Enhanced Grunt 1 | . . . . . . . . . . . . 1 . . . . . . . . . Enhanced Q-Series 15 | . . . . . . . . . . . . . . . . . . . . . 15 Lightning 3 | . . . . . . . . . . . . . . . . . . . 3 . . Combat Programmer 2 | . . . . . . . . . . . . . . . . . . . . . 2 Assembled 1 | . . . . 1 . . . . . . . . . . . . . . . . . Thug 2 | . . . . . . . . . 2 . . . . . . . . . . . . Best Kill Streak 21 | . 6 . 4 4 1 8 2 4 2 . 8 5 8 . 7 1 5 6 8 21 9 Combat Bots Only 17 | . 2 . 4 4 1 5 2 3 2 . 1 3 8 . 6 1 5 4 8 17 9 Max Kills in Single Turn 7 | . 2 . 1 2 1 2 1 3 2 . 7 2 1 . 2 1 2 2 3 3 3 Gunslinging 1 | . . . . 1 . 1 . 1 . . . 1 . . 1 . . . . . . Exploded 3 | . . . . . . 2 . . . . . . . . 1 . 1 . 3 2 1 Melee 1 | . . . . . . . . . . . . 1 . . . . . . . . 1 Uniques/NPCs Destroyed 1 | . . . . . . . . . . . . . . . . . . . . . 1 MAIN.C Shell (-1/Command) Combat | -11 -10 -10 -9 -9 -8 -7 -6 -6 -6 -6 -6 -5 -4 -4 -4 -3 -3 -2 -2 -1 -1 -------- Run | Scr Mat Min Mat Min Mat Fac Fac Ext Cet Arc Hub Fac Fac Was Fac Res Tes Res Qua Acc Com Damage Taken 27477 | . 473 . 937 235 . 990 232 401 724 . 254 1104 1130 126 4081 254 1537 1449 1382 3317 8851 Core 1748 | . 56 . 141 49 . 100 18 28 82 . . 53 37 . 142 . 25 111 63 158 685 Absorbed by Shields 2487 | . . . . . . . . 178 186 . . . . . 99 . 358 431 205 . 1030 Reduced by Siege Mode 680 | . . . . . . . . . . . . 20 31 . 17 . 78 99 71 39 325 Core Remaining (%) 82 | 100 . 77 . 52 100 85 . . . . 84 94 . . 84 . 98 . 88 . 47 Volleys Fired 905 | . 35 . 45 15 4 44 11 33 23 . 23 27 45 5 117 5 76 65 56 131 145 Largest 4 | . 2 . 2 2 3 4 4 4 4 . 4 4 4 3 4 4 4 3 3 2 4 Hottest 560 | . 60 . 133 46 66 98 98 112 112 . 119 126 178 195 213 123 325 301 301 180 560 Shots Fired 2054 | . 70 . 76 29 12 167 40 132 92 . 52 94 128 13 318 20 159 110 116 180 246 Gun 1288 | . 70 . 59 29 12 165 40 132 92 . 52 91 59 5 259 20 130 28 45 . . Cannon 709 | . . . 17 . . . . . . . . 3 69 8 57 . 21 77 68 163 226 Launcher 57 | . . . . . . 2 . . . . . . . . 2 . 8 5 3 17 20 Special . | . . . . . . . . . . . . . . . . . . . . . . Kinetic 1038 | . 35 . 12 29 12 165 40 132 92 . 52 91 59 . 213 20 47 . 38 . 1 Thermal 663 | . . . 64 . . . . . . . . 3 69 13 22 . 69 55 67 102 199 Explosive 8 | . . . . . . 2 . . . . . . . . 2 . . . . . 4 Electromagnetic 345 | . 35 . . . . . . . . . . . . . 81 . 43 55 11 78 42 Robot Hit Streak 52 | . 9 . 22 6 8 52 16 28 16 . 11 29 38 5 31 14 26 49 19 30 47 Robot Miss Streak 11 | . 4 . 8 4 2 4 1 5 4 . 4 11 6 1 5 2 1 2 3 2 3 Penetration Max 2 | . . . . . . . . 1 1 . 1 . 1 . 2 . 1 . 1 1 1 Secondary Targets 19 | . 1 . . 2 . 2 . 2 2 . . 3 1 . 6 . . . . . . Max Gunslinging Chain 2 | . 1 . . 1 . 1 . 1 1 . . 2 1 . 1 . . . . . . Shots Hit Robots 1490 | . 45 . 62 19 8 119 32 104 79 . 16 65 97 11 220 17 99 86 84 133 194 Core Hits 927 | . 20 . 57 9 6 41 15 70 79 . 24 61 43 1 102 4 38 50 60 120 127 Critical Hits 97 | . . . 2 . . . 2 3 1 . 2 2 7 . 10 1 3 . 2 24 38 Critical Kills 20 | . . . . . . . 1 . 1 . . . 2 . 2 . 1 . 1 11 1 Critical Parts Destroyed 66 | . . . 1 . . . 1 3 . . 2 2 5 . 8 . 2 . 1 13 28 Melee Attacks 11 | . . . . . . . . . . . . . . . . . . . 1 6 4 Impact . | . . . . . . . . . . . . . . . . . . . . . . Slashing 11 | . . . . . . . . . . . . . . . . . . . 1 6 4 Piercing . | . . . . . . . . . . . . . . . . . . . . . . Sneak Attacks 4 | . . . . . . . . . . . . . . . . . . . . 3 1 Combat Hostiles . | . . . . . . . . . . . . . . . . . . . . . . Follow-up Attacks . | . . . . . . . . . . . . . . . . . . . . . . Damage Inflicted 67790 | . 796 . 829 313 133 2131 526 2391 1623 . 1068 1931 2971 325 7343 431 3601 3886 3326 11821 22345 Guns 20536 | . 704 . 678 313 108 1812 526 2386 1623 . 449 1523 981 121 4945 431 2341 836 759 . . Cannons 34838 | . . . 151 . . . . . . . . . 1339 204 1349 . 650 2550 2029 8344 18222 Explosions 11283 | . 91 . . . . 319 . . . . 619 408 651 . 1013 . 524 500 538 2741 3879 Melee 980 | . . . . . . . . . . . . . . . . . . . . 736 244 Ramming 153 | . 1 . . . 25 . . 5 . . . . . . 36 . 86 . . . . Kinetic 16387 | . 279 . 173 313 108 1812 526 2386 1623 . 449 1523 981 . 4172 431 1043 . 516 . 52 Thermal 32915 | . 91 . 656 . . . . . . . . . 1990 325 887 . 1198 1735 2295 6058 17680 Explosive 3446 | . . . . . . 319 . . . . . 408 . . 541 . . . 82 . 2096 Electromagnetic 13909 | . 425 . . . . . . . . . 619 . . . 1707 . 1274 2151 433 5027 2273 Impact . | . . . . . . . . . . . . . . . . . . . . . . Slashing 980 | . . . . . . . . . . . . . . . . . . . . 736 244 Piercing . | . . . . . . . . . . . . . . . . . . . . . . Highest Corruption 29 | . . . 1 1 1 3 . . . . . 2 3 3 14 . 13 19 24 6 29 Average Corruption 9 | . . . 1 1 1 1 . . . . . 2 2 3 8 . 5 12 21 3 16 Corruption Purged . | . . . . . . . . . . . . . . . . . . . . . . Effects 374 | . . . . 2 1 3 . . . . . 4 8 7 92 . 28 43 73 22 91 Message Errors 46 | . . . . 1 . 1 . . . . . . . 1 12 . 5 4 11 2 9 Matter Fused 44 | . . . . . . . . . . . . . 4 2 7 . 5 6 7 2 11 Heat Flow Errors 22 | . . . . . . . . . . . . . . 1 6 . 2 1 3 . 9 Energy Discharges 30 | . . . . . . . . . . . . 1 1 1 5 . 3 5 6 2 6 Parts Rejected 5 | . . . . . . . . . . . . . . . 2 . . . 3 . . Data Loss (minor) 25 | . . . . . 1 . . . . . . 1 . 2 6 . 1 2 3 3 6 Data Loss (major) 13 | . . . . . . . . . . . . . . . 5 . . 3 . 1 4 Misfires 15 | . . . . . . . . . . . . . . . 5 . 1 2 2 . 5 Alerts 2 | . . . . . . . . . . . . . . . . . 1 . 1 . . Misdirections 34 | . . . . . . . . . . . . . . . 6 . . 6 7 . 15 Targeting Errors 114 | . . . . . . 1 . . . . . 2 2 . 30 . 6 14 26 12 21 Weapon Failures 24 | . . . . 1 . 1 . . . . . . 1 . 8 . 4 . 4 . 5 Overload Shots 12 | . . . . . . . . . . . . . . . . . . . . . 12 Effects 1 | . . . . . . . . . . . . . . . . . . . . . 1 Meltdown 1 | . . . . . . . . . . . . . . . . . . . . . 1 Overflow Damage 2809 | . . . . . . 48 . . . . 51 28 177 . 141 . 140 67 . 865 1292 Projectiles 2022 | . . . . . . . . . . . . . 139 . 52 . 70 67 . 587 1107 Explosions 384 | . . . . . . 48 . . . . 51 28 38 . 89 . 70 . . 25 35 Melee 403 | . . . . . . . . . . . . . . . . . . . . 253 150 Knockbacks 1 | . . . . . . . . . . . . . . . . . . . . . 1 Impact . | . . . . . . . . . . . . . . . . . . . . . . Kinetic 1 | . . . . . . . . . . . . . . . . . . . . . 1 Secondary . | . . . . . . . . . . . . . . . . . . . . . . Self-Inflicted Damage 705 | . . . . . . . . . . . 93 . . . 171 . 16 10 95 160 160 Shots 39 | . . . . . . . . . . . 1 . . . 3 . 1 2 3 13 16 Rammed 20 | . 1 . . . 4 . . 1 . . . . . . 2 . 12 . . . . Targets Rammed 20 | . 1 . . . 4 . . 1 . . . . . . 2 . 12 . . . . Kicked . | . . . . . . . . . . . . . . . . . . . . . . Crushed . | . . . . . . . . . . . . . . . . . . . . . . Highest Temperature 408 | . 97 . 199 8 . 269 129 104 194 . 42 12 144 162 405 5 357 218 318 254 408 Average Temperature 82 | . 56 . 96 4 . 95 50 36 59 . 19 5 46 66 116 3 66 101 107 63 98 Received Heat Transfer 3113 | . 264 . 291 . . 84 108 60 79 . 30 210 210 . 224 36 195 120 39 387 776 Effects 9 | . . . . . . 2 . . . . . . . . 3 . 3 . 1 . . Energy Bleed 1 | . . . . . . . . . . . . . . . . . . . 1 . . Interference 7 | . . . . . . 2 . . . . . . . . 2 . 3 . . . . Matter Decay 1 | . . . . . . . . . . . . . . . 1 . . . . . . Siege Activations 34 | . . . . . . . . . . . 1 3 2 . 5 . 4 3 5 4 7 Total Turns 824 | . . . . . . . . . . . 127 36 54 . 56 . 93 54 130 39 235 Longest Duration 127 | . . . . . . . . . . . 127 14 42 . 37 . 31 27 52 18 80 Robots Corrupted 57 | . . . . . . . . . . . 2 . . . 6 . 4 9 . 22 14 Combat Hostiles 50 | . . . . . . . . . . . . . . . 5 . 4 8 . 19 14 Parts Fried 140 | . 2 . . . . . . 3 1 . 4 1 . . 12 . 18 26 . 50 23 Impact Corruptions . | . . . . . . . . . . . . . . . . . . . . . . Robots Melted 1 | . . . . . . . . . . . . . 1 . . . . . . . . Combat Hostiles 1 | . . . . . . . . . . . . . 1 . . . . . . . . Parts Melted 33 | . . . . . . . . . . . . . 9 . 1 . 5 9 . 6 3 Heat Transferred 20942 | . 100 . 884 . . . . . . . . . 2650 498 1300 . 1136 1406 1904 3852 7212 Parts Sabotaged 4 | . . . . . . . . . . . . 2 . . . . . 2 . . . Parts Stolen . | . . . . . . . . . . . . . . . . . . . . . . Parts Stripped . | . . . . . . . . . . . . . . . . . . . . . . Power Chain Reactions 19 | . 1 . . . . . . . . . . . . . 2 . 1 . 2 8 5 Missiles Intercepted 4 | . . . . . . . . . . . . . . . . . . . . . 4 Alert | -11 -10 -10 -9 -9 -8 -7 -6 -6 -6 -6 -6 -5 -4 -4 -4 -3 -3 -2 -2 -1 -1 ------- Run | Scr Mat Min Mat Min Mat Fac Fac Ext Cet Arc Hub Fac Fac Was Fac Res Tes Res Qua Acc Com Peak Influence 1988 | . 204 79 253 164 144 229 171 350 805 643 878 802 629 175 995 522 568 836 726 1988 1858 Initial 1272 | . . 79 30 94 40 65 94 31 196 322 224 410 305 160 101 522 251 319 470 435 1272 Average 454 | . 74 79 157 108 94 89 113 106 520 458 574 568 469 160 539 429 295 547 512 1243 1225 Maximum Alert Level 5 | . 1 . 1 . . 1 . 1 3 2 3 3 2 . 3 2 2 3 3 5 5 Low Security (%) 42 | 100 92 100 76 100 100 95 100 84 4 . . . . 100 10 . 34 . 1 . 53 Level 1 12 | . 7 . 23 . . 4 . 15 5 51 36 . 21 . 20 34 37 8 14 . . Level 2 26 | . . . . . . . . . 70 48 22 84 78 . 35 65 27 78 69 13 . Level 3 10 | . . . . . . . . . 18 . 41 16 . . 32 . . 12 13 40 . Level 4 2 | . . . . . . . . . . . . . . . . . . . . 5 23 Level 5 5 | . . . . . . . . . . . . . . . . . . . . 40 22 High Security . | . . . . . . . . . . . . . . . . . . . . . . Max Security . | . . . . . . . . . . . . . . . . . . . . . . Squads Dispatched 65 | . 2 . 2 . 1 2 3 1 1 . 3 2 7 . 8 . 5 8 7 9 4 Investigation 8 | . 1 . 1 . . . 2 . 1 . . . . . . . . 1 1 1 . Extermination 16 | . . . . . . 1 . . . . 1 . 1 . 2 . 2 3 2 3 1 Reinforcement 19 | . 1 . 1 . 1 1 1 1 . . 2 . 3 . 3 . 2 2 1 . . Assault 12 | . . . . . . . . . . . . 1 . . 1 . . 2 . 5 3 Garrison 10 | . . . . . . . . . . . . 1 3 . 2 . 1 . 3 . . Intercept . | . . . . . . . . . . . . . . . . . . . . . . Construction Impeded 5 | . . . . . . . . . . . 2 . . . 1 . 1 1 . . . Haulers Reinforced 3 | . . . . . . . . . . . . . 1 . 2 . . . . . . Stealth | -11 -10 -10 -9 -9 -8 -7 -6 -6 -6 -6 -6 -5 -4 -4 -4 -3 -3 -2 -2 -1 -1 --------- Run | Scr Mat Min Mat Min Mat Fac Fac Ext Cet Arc Hub Fac Fac Was Fac Res Tes Res Qua Acc Com Distress Signals 24 | . . . 2 . 2 1 . 2 2 . 2 1 1 . 3 . . . 1 . 7 Communications Jammed 83 | . . . . . . . . . . . . . . . . . . . 9 31 43 Distress Signals 83 | . . . . . . . . . . . . . . . . . . . 9 31 43 Times Spotted 474 | . 17 . 25 7 7 18 6 24 25 3 13 17 11 5 52 1 25 34 29 76 79 Peak Tracking Total 12 | . 7 . 6 3 3 4 3 3 5 7 4 5 4 5 5 1 8 7 8 8 12 Tactical Retreats 19 | . . . 1 . . 1 . . . . . 1 1 . 5 . 5 2 1 1 1 Traps | -11 -10 -10 -9 -9 -8 -7 -6 -6 -6 -6 -6 -5 -4 -4 -4 -3 -3 -2 -2 -1 -1 ------- Run | Scr Mat Min Mat Min Mat Fac Fac Ext Cet Arc Hub Fac Fac Was Fac Res Tes Res Qua Acc Com Traps Triggered 16 | . . . 2 . 1 1 2 1 . . . . 2 . 1 . . 5 . . 1 Indirectly . | . . . . . . . . . . . . . . . . . . . . . . Trap Hack Attempts . | . . . . . . . . . . . . . . . . . . . . . . Triggered . | . . . . . . . . . . . . . . . . . . . . . . Disarmed . | . . . . . . . . . . . . . . . . . . . . . . Reprogrammed . | . . . . . . . . . . . . . . . . . . . . . . Reused . | . . . . . . . . . . . . . . . . . . . . . . Traps Extracted . | . . . . . . . . . . . . . . . . . . . . . . Installed . | . . . . . . . . . . . . . . . . . . . . . . Triggered 1 | . 1 . . . . . . . . . . . . . . . . . . . . Machines | -11 -10 -10 -9 -9 -8 -7 -6 -6 -6 -6 -6 -5 -4 -4 -4 -3 -3 -2 -2 -1 -1 ---------- Run | Scr Mat Min Mat Min Mat Fac Fac Ext Cet Arc Hub Fac Fac Was Fac Res Tes Res Qua Acc Com Machines Disabled 66 | . . . . . . . . 3 2 . 10 4 6 . 18 . 9 2 8 1 3 Max in Single Turn 7 | . . . . . . . . 1 . . 7 4 4 . 5 . 1 1 2 1 1 Garrison Access 4 | . . . . . . 1 . . . . 1 1 . . 1 . . . . . . Network Hub 1 | . . . . . . . . . . . 1 . . . . . . . . . . Machines Sabotaged . | . . . . . . . . . . . . . . . . . . . . . . Garrisons Compromised . | . . . . . . . . . . . . . . . . . . . . . . Overloaded Fab Kills . | . . . . . . . . . . . . . . . . . . . . . . Fab Network Shutdowns . | . . . . . . . . . . . . . . . . . . . . . . Hacking | -11 -10 -10 -9 -9 -8 -7 -6 -6 -6 -6 -6 -5 -4 -4 -4 -3 -3 -2 -2 -1 -1 --------- Run | Scr Mat Min Mat Min Mat Fac Fac Ext Cet Arc Hub Fac Fac Was Fac Res Tes Res Qua Acc Com Machines Accessed 56 | . 1 . 3 . . 4 3 7 1 1 5 2 4 . 7 2 2 3 6 4 1 Terminals 43 | . 1 . 2 . . 2 3 7 1 . 4 1 2 . 4 2 2 2 5 4 1 Fabricators 1 | . . . . . . . . . . . . . 1 . . . . . . . . Repair Stations 3 | . . . . . . 1 . . . . . . . . 1 . . 1 . . . Recycling Units . | . . . . . . . . . . . . . . . . . . . . . . Scanalyzers 2 | . . . 1 . . . . . . . . . . . 1 . . . . . . Garrison Access 6 | . . . . . . 1 . . . . 1 1 1 . 1 . . . 1 . . Total Hacks 159 | . 2 . 8 . . 6 6 16 4 25 11 4 12 . 16 6 11 7 15 9 1 Successful 88 | . 1 . 5 . . 4 2 10 . 25 4 1 5 . 9 3 6 2 6 4 1 Failed 70 | . 1 . 3 . . 2 4 5 4 . 7 3 7 . 7 3 5 5 9 5 . Catastrophic 20 | . . . 1 . . 1 1 1 2 . 1 1 1 . 1 1 1 2 5 1 . Database Lockouts 1 | . . . . . . . . 1 . . . . . . . . . . . . . Manual 33 | . 2 . 4 . . . 3 7 1 . 5 . 2 . . . 6 . 1 2 . Terminals 108 | . 2 . 6 . . 2 6 16 4 . 9 2 7 . 11 6 11 3 13 9 1 Fabricators 4 | . . . . . . . . . . . . . 4 . . . . . . . . Repair Stations 8 | . . . . . . 2 . . . . . . . . 2 . . 4 . . . Recycling Units . | . . . . . . . . . . . . . . . . . . . . . . Scanalyzers 4 | . . . 2 . . . . . . . . . . . 2 . . . . . . Garrison Access 10 | . . . . . . 2 . . . . 2 2 1 . 1 . . . 2 . . Terminal Hacks 66 | . 1 . 3 . . 1 2 9 . 25 2 . 2 . 4 3 3 . 6 4 1 Record 26 | . . . . . . . . . . 25 . . . . . . . . 1 . . Part Schematic 2 | . . . . . . . . 2 . . . . . . . . . . . . . Robot Analysis 2 | . 1 . 1 . . . . . . . . . . . . . . . . . . Prototype ID Bank 1 | . . . . . . . . . . . . . . . . . 1 . . . . Open Door 7 | . . . . . . . . 3 . . . . . . . . . . 1 2 1 Level Access Points 1 | . . . 1 . . . . . . . . . . . . . . . . . . Branch Access Points 3 | . . . 1 . . . 1 . . . . . . . . . . . . 1 . Emergency Access Points 2 | . . . . . . . . . . . . . . . 1 1 . . . . . Terminal Index 3 | . . . . . . . 1 1 . . . . . . . . 1 . . . . Alert Level 4 | . . . . . . . . 1 . . 1 . . . 1 . . . . 1 . Unreport Threat 8 | . . . . . . . . . . . 1 . . . 2 1 1 . 3 . . Hauler Manifests 1 | . . . . . . . . 1 . . . . . . . . . . . . . Zone Layout 6 | . . . . . . 1 . 1 . . . . 2 . . 1 . . 1 . . Fabricator Hacks 2 | . . . . . . . . . . . . . 2 . . . . . . . . Load Schematic 1 | . . . . . . . . . . . . . 1 . . . . . . . . Build 1 | . . . . . . . . . . . . . 1 . . . . . . . . Repair Station Hacks 6 | . . . . . . 2 . . . . . . . . 2 . . 2 . . . Scan Component 3 | . . . . . . 1 . . . . . . . . 1 . . 1 . . . Repair 3 | . . . . . . 1 . . . . . . . . 1 . . 1 . . . Recycling Unit Hacks . | . . . . . . . . . . . . . . . . . . . . . . Scanalyzer 4 | . . . 2 . . . . . . . . . . . 2 . . . . . . Insert Component 2 | . . . 1 . . . . . . . . . . . 1 . . . . . . Analyze 2 | . . . 1 . . . . . . . . . . . 1 . . . . . . Garrison Access Hacks 4 | . . . . . . 1 . . . . 1 1 . . 1 . . . . . . Seal Access 4 | . . . . . . 1 . . . . 1 1 . . 1 . . . . . . Unauthorized Hacks 6 | . . . . . . . . 1 . . 1 . 1 . . . 3 . . . . Terminals 5 | . . . . . . . . 1 . . 1 . . . . . 3 . . . . Track 1 | . . . . . . . . . . . . . . . . . 1 . . . . Botnet 3 | . . . . . . . . 1 . . 1 . . . . . 1 . . . . Operators 1 | . . . . . . . . . . . . . . . . . 1 . . . . Fabricators 1 | . . . . . . . . . . . . . 1 . . . . . . . . Prioritize 1 | . . . . . . . . . . . . . 1 . . . . . . . . Repair Stations . | . . . . . . . . . . . . . . . . . . . . . . Recycling Units . | . . . . . . . . . . . . . . . . . . . . . . Scanalyzers . | . . . . . . . . . . . . . . . . . . . . . . Garrison Access . | . . . . . . . . . . . . . . . . . . . . . . Data Cores Recovered . | . . . . . . . . . . . . . . . . . . . . . . Used . | . . . . . . . . . . . . . . . . . . . . . . Hacking Detections 41 | . 1 . 3 . . 3 3 4 1 . 4 1 4 . 4 2 1 3 4 3 . Full Trace Events 4 | . . . 1 . . . . . 1 . . . . . . . . . 1 1 . Feedback Events . | . . . . . . . . . . . . . . . . . . . . . . Feedback Blocked . | . . . . . . . . . . . . . . . . . . . . . . Robot Schematics Acquired . | . . . . . . . . . . . . . . . . . . . . . . Robots Built . | . . . . . . . . . . . . . . . . . . . . . . Matter . | . . . . . . . . . . . . . . . . . . . . . . Time . | . . . . . . . . . . . . . . . . . . . . . . Total Robot Build Rating . | . . . . . . . . . . . . . . . . . . . . . . Part Schematics Acquired 4 | . . . 1 . . . . 2 . . . . . . 1 . . . . . . Parts Built 1 | . . . . . . . . . . . . . 1 . . . . . . . . Matter 168 | . . . . . . . . . . . . . 168 . . . . . . . . Time 42 | . . . . . . . . . . . . . 42 . . . . . . . . Total Part Build Rating 4 | . . . . . . . . . . . . . 4 . . . . . . . . Parts Repaired 3 | . . . . . . 1 . . . . . . . . 1 . . 1 . . . Time 139 | . . . . . . 26 . . . . . . . . 99 . . 14 . . . Parts Recycled . | . . . . . . . . . . . . . . . . . . . . . . Recycled Matter . | . . . . . . . . . . . . . . . . . . . . . . Retrieved Matter . | . . . . . . . . . . . . . . . . . . . . . . Retrieved Components . | . . . . . . . . . . . . . . . . . . . . . . Parts Scanalyzed 2 | . . . 1 . . . . . . . . . . . 1 . . . . . . Part Schematics Acquired 2 | . . . 1 . . . . . . . . . . . 1 . . . . . . Parts Damaged 1 | . . . . . . . . . . . . . . . 1 . . . . . . Bothacking | -11 -10 -10 -9 -9 -8 -7 -6 -6 -6 -6 -6 -5 -4 -4 -4 -3 -3 -2 -2 -1 -1 ------------ Run | Scr Mat Min Mat Min Mat Fac Fac Ext Cet Arc Hub Fac Fac Was Fac Res Tes Res Qua Acc Com Used RIF Installer . | . . . . . . . . . . . . . . . . . . . . . . Robots Hacked . | . . . . . . . . . . . . . . . . . . . . . . Non-combat . | . . . . . . . . . . . . . . . . . . . . . . Combat . | . . . . . . . . . . . . . . . . . . . . . . Robot Hacks Applied . | . . . . . . . . . . . . . . . . . . . . . . Relay Couplers Released 1 | . . . . . . . . . . . 1 . . . . . . . . . . Machine Destruction 1 | . . . . . . . . . . . 1 . . . . . . . . . . Robots Rewired 13 | . . . . . . . . 12 . . . . . . . . 1 . . . . Allies Hacked 1 | . . . . . . . . . . . . . . . . . 1 . . . . Hacks Repelled . | . . . . . . . . . . . . . . . . . . . . . . Allies | -11 -10 -10 -9 -9 -8 -7 -6 -6 -6 -6 -6 -5 -4 -4 -4 -3 -3 -2 -2 -1 -1 -------- Run | Scr Mat Min Mat Min Mat Fac Fac Ext Cet Arc Hub Fac Fac Was Fac Res Tes Res Qua Acc Com Total Allies 23 | . . . . 1 . . . 16 5 . . . . . . . 1 . . . . Largest Group 10 | . . . . 1 1 . . 10 6 5 4 2 . . . . 1 . . . . Highest-Rated Group 620 | . . . . 31 31 . . 402 620 507 376 188 . . . . 125 . . . . Highest-Rated Ally 156 | . . . . 31 31 . . 156 156 131 94 94 . . . . 125 . . . . Total Orders . | . . . . . . . . . . . . . . . . . . . . . . Ally Attacks 260 | . . . . . 5 . . 85 88 16 47 2 . . . . 17 . . . . Total Damage 7631 | . . . . . 65 . . 1800 2391 696 1702 43 . . . . 934 . . . . Kills 58 | . . . . . 1 . . 10 20 8 12 . . . . . 7 . . . . Allies Corrupted . | . . . . . . . . . . . . . . . . . . . . . . Allies Melted . | . . . . . . . . . . . . . . . . . . . . . . Intel | -11 -10 -10 -9 -9 -8 -7 -6 -6 -6 -6 -6 -5 -4 -4 -4 -3 -3 -2 -2 -1 -1 ------- Run | Scr Mat Min Mat Min Mat Fac Fac Ext Cet Arc Hub Fac Fac Was Fac Res Tes Res Qua Acc Com Robot Analysis Total 2 | . 1 . 1 . . . . . . . . . . . . . . . . . . Derelict Logs Recovered . | . . . . . . . . . . . . . . . . . . . . . . Drone Launches . | . . . . . . . . . . . . . . . . . . . . . . Drone Recoveries . | . . . . . . . . . . . . . . . . . . . . . . Exploration | -11 -10 -10 -9 -9 -8 -7 -6 -6 -6 -6 -6 -5 -4 -4 -4 -3 -3 -2 -2 -1 -1 ------------- Run | Scr Mat Min Mat Min Mat Fac Fac Ext Cet Arc Hub Fac Fac Was Fac Res Tes Res Qua Acc Com Turns Passed 14627 | 97 343 56 663 665 377 918 626 1253 526 76 572 450 941 194 1550 179 1012 763 773 1081 1512 Spaces Moved 6801 | 58 143 30 229 342 187 396 323 571 231 43 209 177 452 139 751 118 459 409 344 488 702 Core 59 | 10 . . 1 . . . . . . . . . . . . . . . . . 48 Treads 4568 | 48 143 30 190 342 187 396 323 571 231 43 209 177 445 . 158 . 90 1 234 488 262 Legs 38 | . . . 38 . . . . . . . . . . . . . . . . . . Wheels 2136 | . . . . . . . . . . . . . 7 139 593 118 369 408 110 . 392 Hover . | . . . . . . . . . . . . . . . . . . . . . . Flight . | . . . . . . . . . . . . . . . . . . . . . . Fastest Speed 50 | 50 160 180 180 180 180 180 180 160 160 163 163 163 115 115 120 120 120 120 130 150 50 Average Speed 156 | 141 160 180 205 180 180 180 180 175 173 163 163 179 165 124 140 120 136 131 142 150 134 Slowest Speed 1300 | 160 180 180 1300 180 180 180 180 180 182 163 163 185 183 140 210 120 185 185 150 172 210 Overloaded Moves . | . . . . . . . . . . . . . . . . . . . . . . Propulsion Burnouts . | . . . . . . . . . . . . . . . . . . . . . . Robots Hopped . | . . . . . . . . . . . . . . . . . . . . . . Cave-ins Triggered . | . . . . . . . . . . . . . . . . . . . . . . Exploration Rate (%) 32 | 3 37 12 35 74 25 17 11 67 67 62 28 8 12 62 20 4 60 17 39 16 28 Regions Visited 21 Branch Regions 9 Pre-discovered Areas . | . . . . . . . . . . . . . . . . . . . . . . Known Exits Taken 6 | . . . 1 1 . . 1 . . . . . . . 1 1 . . . 1 . Unknown Exits Taken 13 | 1 1 1 . . 1 1 . 1 1 1 1 1 . . . . 1 1 1 . . Scrap Searched 1 | . . . . 1 . . . . . . . . . . . . . . . . . Spaces Dug 85 | . . . . . . . . . . . . 10 . . 11 . 13 4 14 27 6 Terrain Destroyed 705 | . 6 . . . . 8 . 2 . . 188 33 53 . 149 1 43 14 84 73 51 Melee 3 | . . . . . . . . . . . . . . . . . . . . 3 . Projectile 161 | . . . . . . . . 2 . . 16 17 18 . 16 1 26 14 13 23 15 AOE 541 | . 6 . . . . 8 . . . . 172 16 35 . 133 . 17 . 71 47 36 Terrain Rammed . | . . . . . . . . . . . . . . . . . . . . . . Walls Destroyed . | . . . . . . . . . . . . . . . . . . . . . . Machines Disabled . | . . . . . . . . . . . . . . . . . . . . . . Actions | -11 -10 -10 -9 -9 -8 -7 -6 -6 -6 -6 -6 -5 -4 -4 -4 -3 -3 -2 -2 -1 -1 --------- Run | Scr Mat Min Mat Min Mat Fac Fac Ext Cet Arc Hub Fac Fac Was Fac Res Tes Res Qua Acc Com Total 9363 | 73 185 34 344 362 216 523 348 756 304 49 394 241 546 148 1005 147 702 565 565 729 1127 Wait 688 | . . . 34 . 3 33 2 21 4 7 148 22 18 . 40 . 66 34 89 47 120 Move 6780 | 57 142 29 228 341 186 395 322 570 230 42 208 176 452 138 750 117 458 408 343 487 701 Hop . | . . . . . . . . . . . . . . . . . . . . . . Pick Up 181 | 8 5 . 9 4 10 13 2 9 14 . 2 1 8 2 27 8 13 5 14 4 23 Fast Attach 120 | . 1 . 8 1 3 4 . 5 1 . 3 4 2 2 19 1 10 14 11 3 28 Attach 152 | 6 . 2 9 . 2 4 5 . 7 . 3 2 10 1 21 4 4 5 14 23 30 Detach 48 | . . . 1 1 . . . . . . . 1 1 . 3 1 1 . 5 14 20 Swap 128 | 1 1 . 3 . 1 14 3 11 7 . 1 8 4 . 6 3 28 12 8 6 11 Drop 220 | 1 . 3 7 . 3 16 3 22 18 . 6 . 6 . 20 8 23 11 24 8 41 Fire 905 | . 35 . 45 15 4 44 11 33 23 . 23 27 45 5 117 5 76 65 56 131 145 Melee 11 | . . . . . . . . . . . . . . . . . . . 1 6 4 Ram 1 | . . . . . . . . . . . . . . . 1 . . . . . . Kick . | . . . . . . . . . . . . . . . . . . . . . . Crush 19 | . 1 . . . 4 . . 1 . . . . . . 1 . 12 . . . . Escape Stasis 17 | . . . . . . . . 2 . . . . . . . . . 11 . . 4 Rewire 93 | . . . . . . . . 82 . . . . . . . . 11 . . . . Trap . | . . . . . . . . . . . . . . . . . . . . . . Miscellaneous . | . . . . . . . . . . . . . . . . . . . . . . Route ------- -11/Scrapyard -10/Materials -10/Mines -9/Materials (discovered 5 exits: Mat x3 / *Min x2) -9/Mines -8/Materials -7/Factory -6/Factory (discovered 4 exits: Low x2 / *Ext x2) -6/Extension (discovered 2 exits: *Fac / *Cet) -6/Cetus (discovered 2 exits: *Fac / *Arc) -6/Archives -6/Hub_04(d) -5/Factory -4/Factory -4/Waste -4/Factory -3/Research -3/Testing -2/Research (discovered 2 exits: *Acc / *Qua) -2/Quarantine -1/Access -1/Command Tau Ceti IV Orbit History --------- Turn | Location | Event 8 | -11/Scrapyard | Discovered new exit (range 14) 98 | -11/Scrapyard | Entered Materials 308 | -10/Materials | Build established: Mutant 402 | -10/Materials | Discovered new exit (range 12) 441 | -10/Materials | Entered Mines 488 | -10/Mines | Discovered new exit (range 5) 497 | -10/Mines | Entered Materials 497 | -9/Materials | Evolved 2 slots: Utility x2 707 | -9/Materials | Build established: Hauler-Mutant 1043 | -9/Materials | Lost 3 parts (1p2w) 1052 | -9/Materials | Identified exit to Mines 1052 | -9/Materials | Identified exit to Materials 1160 | -9/Materials | Entered Mines 1185 | -9/Mines | Assembled infested the area 1454 | -9/Mines | Received a Rocket Launcher from a helpful Derelict 1590 | -9/Mines | Found a damaged Exp. Sensor Array with a note attached 1594 | -9/Mines | Found Prototype Device 1594 | -9/Mines | Identified Exp. Sensor Array 1812 | -9/Mines | Discovered exit to Materials (range 5) 1816 | -9/Mines | Received a Mining Laser from a helpful Derelict 1825 | -9/Mines | Entered Materials 1825 | -8/Materials | Accompanied by 1 ally 1825 | -8/Materials | Evolved 2 slots: Propulsion x1, Weapon x1 2186 | -8/Materials | Discovered new exit (range 10) 2202 | -8/Materials | Entered Factory 2202 | -7/Factory | Evolved 2 slots: Propulsion x1, Weapon x1 2794 | -7/Factory | Build established: Scavenger-Gunner 3026 | -7/Factory | Repaired Lgt. Treads 3046 | -7/Factory | Discovered new exit (range 15) 3120 | -7/Factory | Entered another Factory area 3120 | -6/Factory | Evolved 2 slots: Utility x2 3489 | -6/Factory | Identified exit to Lower Caves 3489 | -6/Factory | Identified exit to Extension 3746 | -6/Factory | Entered Extension 3809 | -6/Extension | Central database locked down 3850 | -6/Extension | Rescued a captive Derelict 3967 | -6/Extension | Rescued A7 4078 | -6/Extension | Rescued a captive Derelict 4078 | -6/Extension | Rescued a captive Derelict 4727 | -6/Extension | Spotted B-75 Beast 4734 | -6/Extension | Allies destroyed B-75 Beast 4749 | -6/Extension | Spotted B-75 Beast 4758 | -6/Extension | Destroyed B-75 Beast 4771 | -6/Extension | Disrupted transfer network 4975 | -6/Extension | Discovered new exit (range 16) 4975 | -6/Extension | Discovered new exit (range 16) 4999 | -6/Extension | Entered Cetus 4999 | -6/Cetus | Accompanied by 5 allies (A7) 5004 | -6/Cetus | Acquired a Cetus Manufacturing Module code from A7 5024 | -6/Cetus | Spotted Cetus Guard 5024 | -6/Cetus | Spotted Cetus Guard 5025 | -6/Cetus | Destroyed Cetus Guard 5026 | -6/Cetus | Spotted Cetus Guard 5027 | -6/Cetus | Spotted Cetus Guard 5032 | -6/Cetus | Allies destroyed Cetus Guard 5039 | -6/Cetus | Allies destroyed Cetus Guard 5044 | -6/Cetus | Destroyed Cetus Guard 5263 | -6/Cetus | Started Cetus Manufacturing Module 5288 | -6/Cetus | Manufactured an Enhanced Grunt 5313 | -6/Cetus | Manufactured an Enhanced Grunt 5338 | -6/Cetus | Manufactured an Enhanced Grunt 5341 | -6/Cetus | Escorted A7 to Cetus Mainframe 5363 | -6/Cetus | Manufactured an Enhanced Grunt 5364 | -6/Cetus | Discovered new exit (range 16) 5388 | -6/Cetus | Manufactured an Enhanced Grunt 5399 | -6/Cetus | Spotted Cetus Guard 5400 | -6/Cetus | Spotted Cetus Guard 5403 | -6/Cetus | Spotted Cetus Guard 5405 | -6/Cetus | Spotted Cetus Guard 5408 | -6/Cetus | Allies destroyed Cetus Guard 5413 | -6/Cetus | Allies destroyed Cetus Guard 5421 | -6/Cetus | Destroyed Cetus Guard 5423 | -6/Cetus | Allies destroyed Cetus Guard 5428 | -6/Cetus | Discovered new exit (range 16) 5441 | -6/Cetus | Met Revision 17 5525 | -6/Cetus | Entered Archives 5525 | -6/Archives | Accompanied by 5 allies (A7) 5530 | -6/Archives | Received a hacking code to weaken MAIN.C 5543 | -6/Archives | Met Zhirov 5549 | -6/Archives | Reinforcements dispatched to Archives 5563 | -6/Archives | Read partially decrypted archive contents 5570 | -6/Archives | Discovered new exit (range 13) 5594 | -6/Archives | Reinforcements dispatched to Archives 5601 | -6/Archives | Entered Hub_04(d) 5601 | -6/Hub_04(d) | Accompanied by 4 allies 5746 | -6/Hub_04(d) | Discovered new exit (range 16) 6000 | -6/Hub_04(d) | Network Hub disabled 6064 | -6/Hub_04(d) | Spotted Lightning 6162 | -6/Hub_04(d) | Spotted Lightning 6167 | -6/Hub_04(d) | Spotted Lightning 6173 | -6/Hub_04(d) | Entered Factory 6173 | -5/Factory | Accompanied by 2 allies 6173 | -5/Factory | Evolved 2 slots: Utility x2 6468 | -5/Factory | Garrison activated, responded to threat 6473 | -5/Factory | First assault squad dispatched 6506 | -5/Factory | Spotted B-75 Beast 6518 | -5/Factory | Destroyed B-75 Beast 6614 | -5/Factory | Discovered new exit (range 5) 6623 | -5/Factory | Entered another Factory area 6623 | -4/Factory | Evolved 2 slots: Power x1, Utility x1 6793 | -4/Factory | Garrison activated, responded to threat 6884 | -4/Factory | Destroyed 8 combat bots 7060 | -4/Factory | Fabricated Lrn. Terrain Scanner (x1) 7564 | -4/Factory | Sucked down chute 7564 | -4/Factory | Entered Waste 7615 | -4/Waste | Spotted C-40 Crusher 7623 | -4/Waste | Spotted C-40 Crusher 7627 | -4/Waste | Spotted C-40 Crusher 7658 | -4/Waste | Crushed by Compactor (1 part destroyed, 2 dropped) 7682 | -4/Waste | Spotted C-40 Crusher 7689 | -4/Waste | Spotted C-40 Crusher 7701 | -4/Waste | Crushed by Compactor (1 part destroyed, 1 dropped) 7704 | -4/Waste | Crushed by Compactor (0 parts destroyed, 2 dropped) 7737 | -4/Waste | Discovered new exit (range 16) 7758 | -4/Waste | Entered Factory 7964 | -4/Factory | Spotted B-86 Titan 7973 | -4/Factory | Build established: Scavenger-Mutant 8192 | -4/Factory | Garrison activated, responded to threat 8302 | -4/Factory | System corruption reached 10% 8504 | -4/Factory | Discovered new exit (range 24) 8645 | -4/Factory | Repaired Exp. Cooling System? 9006 | -4/Factory | Build established: Scavenger-Gunner 9258 | -4/Factory | First assault squad dispatched 9307 | -4/Factory | Identified exit to Research 9308 | -4/Factory | Entered Research 9308 | -3/Research | Evolved 2 slots: Propulsion x2 9403 | -3/Research | Discovered new exit (range 16) 9467 | -3/Research | Identified exit to Testing 9487 | -3/Research | Entered Testing 9692 | -3/Testing | Found Prototype Slashing Weapon 9804 | -3/Testing | Spotted PL-O59X0LYXTW 9823 | -3/Testing | Rewired PL-O59X0LYXTW 9884 | -3/Testing | Found Prototype Energy Gun 9884 | -3/Testing | Identified Tachyon Dispersion Ray 9886 | -3/Testing | Identified Molecular Scythe 9927 | -3/Testing | Garrison activated, responded to threat 10035 | -3/Testing | Found Prototype Energy Cannon 10141 | -3/Testing | Found Prototype Energy Cannon 10141 | -3/Testing | Identified Cld. Nova Cannon 10143 | -3/Testing | Identified Null Cannon 10175 | -3/Testing | Build established: Hauler-Mutant 10196 | -3/Testing | Discovered new exit (range 14) 10402 | -3/Testing | System corruption reached 10% 10499 | -3/Testing | Entered Research 10499 | -2/Research | Evolved 2 slots: Power x1, Utility x1 10580 | -2/Research | Repaired Proton Missile Launcher 10600 | -2/Research | Found Prototype Processor 10600 | -2/Research | Identified Spectral Analyzer 10790 | -2/Research | First assault squad dispatched 10793 | -2/Research | Build established: Generator-Mutant 10927 | -2/Research | System corruption reached 10% 10994 | -2/Research | Found Gamma Bomb Array 10997 | -2/Research | Found Gamma Bomb Array 11061 | -2/Research | Found Prototype Device 11061 | -2/Research | Identified EM Dispersion Field 11065 | -2/Research | Found EM Dispersion Field 11152 | -2/Research | Discovered new exit (range 23) 11194 | -2/Research | Discovered new exit (range 9) 11262 | -2/Research | Entered Quarantine 11426 | -2/Quarantine | Found Antimissile System 11467 | -2/Quarantine | Garrison activated, responded to threat 11513 | -2/Quarantine | Destroyed 8 combat bots 11546 | -2/Quarantine | Met incapacitated Sigix Warrior 11546 | -2/Quarantine | Lockdown squad dispatched 11555 | -2/Quarantine | Acquired the access code to the Sigix quarantine chamber 11558 | -2/Quarantine | Unlocked Sigix quarantine chamber 11747 | -2/Quarantine | Found Alien Slashing Weapon 11747 | -2/Quarantine | Identified Sigix Broadsword 11811 | -2/Quarantine | Found Alien Artifact 11847 | -2/Quarantine | Found Alien Artifact 11868 | -2/Quarantine | Spotted Lightning 11883 | -2/Quarantine | Spotted Lightning 11883 | -2/Quarantine | Spotted Lightning 11892 | -2/Quarantine | Destroyed Lightning 11919 | -2/Quarantine | Destroyed Lightning 11928 | -2/Quarantine | Destroyed Lightning 11940 | -2/Quarantine | Found Prototype Processor 11940 | -2/Quarantine | Identified Exp. Targeting Computer 11946 | -2/Quarantine | Found Prototype Energy Cannon 11952 | -2/Quarantine | Found Prototype Device 11953 | -2/Quarantine | Identified Exp. Phase Shifter 11972 | -2/Quarantine | Found Prototype Energy Cannon 11974 | -2/Quarantine | Identified EMDS (x2) 11996 | -2/Quarantine | Discovered new exit (range 12) 12035 | -2/Quarantine | Entered Access 12035 | -1/Access | Evolved 2 slots: Utility x2 12178 | -1/Access | Destroyed 11 combat bots 12315 | -1/Access | First assault squad dispatched 12325 | -1/Access | Identified exit to Command 12411 | -1/Access | Destroyed 11 combat bots 12712 | -1/Access | Destroyed 17 combat bots 13116 | -1/Access | Entered Command 13301 | -1/Command | Found Enh. Force Lance 13415 | -1/Command | First assault squad dispatched 13497 | -1/Command | Lost 3 parts (3u) 13508 | -1/Command | Destroyed 9 combat bots 13559 | -1/Command | Identified Subatomic Replicator 13559 | -1/Command | Used Subatomic Replicator to replicate Null Cannon 13593 | -1/Command | Spotted Combat Programmer 13594 | -1/Command | Spotted M Guard 13595 | -1/Command | System corruption reached 10% 13602 | -1/Command | Destroyed M Guard 13607 | -1/Command | Destroyed M Guard 13617 | -1/Command | Spotted Combat Programmer 13621 | -1/Command | Destroyed Combat Programmer 13641 | -1/Command | Destroyed Combat Programmer 13641 | -1/Command | All MAIN.C guards destroyed 13662 | -1/Command | Found Prototype Reactor 13662 | -1/Command | Identified Zero-point Reactor 13666 | -1/Command | Found Cld. Nova Cannon 13668 | -1/Command | Found Prototype Device 13668 | -1/Command | Identified AEGIS Remote Shield 13700 | -1/Command | Found Prototype Launcher 13798 | -1/Command | Met MAIN.C 13798 | -1/Command | 0b10 Conduit disabled 13811 | -1/Command | Destroyed MAIN.C Shell 13813 | -1/Command | Surrendered to MAIN.C 13813 | -1/Command | Loaded intel: 61 machine locations 13813 | -1/Command | Loaded intel: 94 trap records 13813 | -1/Command | Identified exit to Surface 13813 | -1/Command | Discovered exit to Surface (range 42) 13813 | -1/Command | Discovered exit to Surface (range 91) 14011 | -1/Command | MAIN.C activated Command garrisons 14027 | -1/Command | Found Vortex Chain Reactor 14030 | -1/Command | Found Zero-point Reactor 14035 | -1/Command | Found Prototype Device 14035 | -1/Command | Identified Exp. Force Field 14041 | -1/Command | Found Prototype Device 14041 | -1/Command | Identified Adv. Particle Accelerator 14044 | -1/Command | Found Prototype Processor 14044 | -1/Command | Identified Exp. Armor Integrity Analyzer 14050 | -1/Command | Unknown forces attacked Command 14060 | -1/Command | Found AEGIS Remote Shield 14067 | -1/Command | Phase Generator disabled 14144 | -1/Command | Spotted EQ-022 14144 | -1/Command | Spotted EQ-020 14144 | -1/Command | Spotted EQ-021 14144 | -1/Command | Spotted EQ-018 14150 | -1/Command | Destroyed EQ-020 14172 | -1/Command | Found Prototype Processor 14174 | -1/Command | Identified Exp. Core Analyzer 14193 | -1/Command | Found Prototype Device 14194 | -1/Command | Identified Exp. Thermal Shield 14249 | -1/Command | Spotted EQ-044 14249 | -1/Command | Spotted EQ-038 14258 | -1/Command | Destroyed EQ-044 14293 | -1/Command | Spotted EQ-026 14300 | -1/Command | Spotted EQ-002 14334 | -1/Command | Spotted EQ-041 14335 | -1/Command | Spotted EQ-001 14340 | -1/Command | Spotted EQ-054 14346 | -1/Command | Spotted EQ-000 14352 | -1/Command | Destroyed EQ-054 14358 | -1/Command | Identified Core Reset Matrix 14358 | -1/Command | Used Core Reset Matrix 14360 | -1/Command | Spotted EQ-063 14360 | -1/Command | Spotted EQ-081 14360 | -1/Command | Spotted EQ-061 14360 | -1/Command | Spotted EQ-060 14368 | -1/Command | Destroyed EQ-063 14368 | -1/Command | Spotted EQ-043 14370 | -1/Command | Destroyed EQ-061 14375 | -1/Command | Spotted EQ-083 14379 | -1/Command | Destroyed EQ-060 14382 | -1/Command | Destroyed EQ-083 14394 | -1/Command | Spotted EQ-078 14396 | -1/Command | Destroyed EQ-043 14405 | -1/Command | Destroyed EQ-078 14426 | -1/Command | Destroyed 7 combat bots 14471 | -1/Command | Spotted EQ-080 14473 | -1/Command | Destroyed EQ-080 14474 | -1/Command | Spotted EQ-037 14477 | -1/Command | Spotted EQ-079 14481 | -1/Command | Spotted EQ-084 14481 | -1/Command | Spotted EQ-104 14481 | -1/Command | Spotted EQ-089 14498 | -1/Command | Destroyed EQ-089 14509 | -1/Command | Destroyed EQ-079 14511 | -1/Command | Spotted EQ-049 14522 | -1/Command | Spotted EQ-067 14527 | -1/Command | Destroyed EQ-067 14532 | -1/Command | Spotted EQ-047 14533 | -1/Command | Spotted EQ-042 14560 | -1/Command | Destroyed EQ-047 14565 | -1/Command | Spotted EQ-101 14574 | -1/Command | Spotted EQ-108 14583 | -1/Command | Spotted EQ-099 14583 | -1/Command | Spotted EQ-062 14584 | -1/Command | Spotted EQ-085 14585 | -1/Command | Spotted EQ-070 14590 | -1/Command | Identified Hellfire Missile Launcher 14591 | -1/Command | Destroyed EQ-101 14594 | -1/Command | Spotted EQ-105 14599 | -1/Command | Spotted EQ-107 14604 | -1/Command | Spotted EQ-127 14604 | -1/Command | Spotted EQ-117 14604 | -1/Command | Spotted EQ-111 14604 | -1/Command | Spotted EQ-110 14604 | -1/Command | Spotted EQ-112 14612 | -1/Command | Spotted EQ-113 14616 | -1/Command | Core integrity fell below 50% 14616 | -1/Command | Spotted EQ-118 14622 | -1/Command | Discovered exit to Surface (range 14) 14628 | *** | Destroyed 0B10! Last Messages --------------- 14608_ Chain reaction triggered in Prototype Reactor. 14608_ Exp. Cooling System destroyed. 14608_ EQ-127 knocked back. 14608_ Penetrated by Slug. 14608_ Critical hit. 14608_ Exp. Biometal Heavy Treads destroyed. 14609_ Slug penetrates EQ-117. 14609_ Penetrated by Slug. 14609_ Slug penetrates EQ-127. 14609_ Slug penetrates Reinforced Barrier. 14610_ Knocked back. 14611_ Penetrated by Slug. 14611_ Enh. Armored Heavy Treads destroyed. 14612_ Chain reaction triggered in Unknown Reactor. 14613_ Knocked back. 14613_ Penetrated by Slug. 14614_ Enh. Armored Heavy Treads destroyed. 14614_ Exp. Armor Integrity Analyzer destroyed. 14615_ Knocked back. 14622_ EXIT=FOUND: SURFACE Map ----- +----------------------------------------------------+ | ?????????????????????????????????????????????????? | | ?????????????????????????????????????????????????? | | ?????????????????????????????????????????????????? | | ?????????????????????????????????????????????????? | | ?????????????????????????????????????????????????? | | ?????????????????????????????????????????????????? | | ?????????????????????????????????????????????????? | | ?????????????????????????????????????????????????? | | ?????????????????????????????????????????????????? | | ?????????????????????????????????????????????????? | | ?????????????????????????????????????????????????? | | ?????????????????????????????????????????????????? | | ?????????????????????????????????????????????????? | | ?????????????????????????????????????????????????? | | ?????????????????????????????????????????????????? | | ?????????????????????????????????????????????????? | | ?????????????????????????????????????????????????? | | ?????????????????????????????????????????????????? | | ?????????????????????????????????????????????????? | | ?????????????????????????????????????????????????? | | ?????????????????????????????????????????????????? | | ?????????????????????????????????????????????????? | | ?????????????????????????????????????????????????? | | ???????????????????????######????????????????????? | | ???????????????????????# #????????????????????? | | ???????????????????????# @ #????????????????????? | | ???????????????????????# #????????????????????? | | ???????????????????????### ###??????????????????? | | ???????????????????#####?# ; #??????????????????? | | ??????????????#!???# """ # ;##??????????????????? | | ??????????????## ??#""T""# ##???????????????????? | | ??????????????#" ##"" ""# #?????????????######## | | ???????????????# #?????????????#" | | ???????????????# #?????????????# | | ???????????????# #?????????????#"""" | | ???????????????# #?????###?????#"""" | | ??????????###### = #???###"###???#" | | ??????????+ *%!##### #???# | | ??????????# #???# =% | | ??????????# #####/## ##### % #???# = | | | ??????????# ???? ?# #???# #???# * | | ??????????# ???? ?# !#???# ##??# | | ??????????# ????# ?# %#####"! #"##?# ! | | ??????????# ?????# ??# # ! ]%!!* #?# | | ??????????#= ??????# ??# # =[/%=!* #?# [ | | ??????????# ???????# # # ==%!=% % ### = | | ???????????????????###?#" "=%!%%!= =*### | | ???????????????? ]!*=="=***" %% !] | | ???????????????? ! !%/%%!%! ! ! | | ????????????????#####+##!!*%#[! =" !% % % ! | +----------------------------------------------------+ Best States ------------- Heat Dissipation 166 Coolant Potential 120 Energy Generation 83 Energy Capacity 840 Matter Stores 572 Matter Capacity 800 Sight Range 23 Terrain Scan Range 24 Terrain Scan Density 210 Jamming Range 16 Additional Mass Support 20 EM Shielding 4 Armor Coverage 2100 Resistance: TH 30 Resistance: EM 75 Weapon Shielding 66 Point Defense Rating 240 Weapon Cycling 25 Phase Shifting 20 Evasion (%) 60 Targeting Accuracy 12 Melee Accuracy 16 Core Analysis 15 Armor Integrity Analysis 90 Recoil Reduction 6 Energy Filtering 50 Particle Charging 50 Overload Amplification 100 Offensive Hacking 10 Item Schematics ----------------- None Robot Schematics ------------------ None Fabricated ------------ Lrn. Terrain Scanner | x1 | -4/Factory Alien Tech Used ----------------- Sigix Broadsword Subatomic Replicator Core Reset Matrix Achievements -------------- None Challenges ------------ None Game ------ Seed EnergySalvageNeutralizer Manual? 0 Play Time 02:38:37 Cumulative 556.5 hours Start 2021.12.10 @ 21:24:33 End 2021.12.11 @ 11:52:37 Sessions 3 Manual Loads 0 Difficulty Rogue Special Mode None Game No. 390 Rogue 383 Adventurer 0 Explorer 7 Win Type 3 Total 32 Types 9/4/12/2/0/1/2/1/1 Lore% 88 Gallery% 96 Achievement% 81 Wizard Run 0 Options --------- ASCII 0 Keyboard 0 Movement Numpad Keybinds 0 Fullscreen 1 Font 18/X11Bold Map View 76x50 Tactical HUD 1 Map Filters NONE Filters NONE Steam 1 RUN: 4591c746-6885-4e86-8e25-dc71acc9aa50